Cogmind - Beta 13 @@@ ROGUE MODE // 2024.04.18 @ 16:12:36 Player: sUPERBIKERNINJA Result: Destroyed by HW-2CY(R) with Subdweller Machine Gun Performance ------------- Evolutions (0) 0 Regions Visited (2) 400 Robots Destroyed (19) 95 Value Destroyed (490) 490 Prototype IDs (0) 0 Alien Tech Used (0) 0 Bonus (0) 0 TOTAL SCORE: 985 Bonus ------- None Cogmind --------- Core Integrity 0/250 Matter 290/300 Energy 149/150 System Corruption 0% Temperature Cool (0) Movement Rolling (105) Location -10/Subcaves Parts ------- > --- POWER (1) -------- Light Angular Momentum Engine > --- PROPULSION (2) --- Compact Wheel Subdweller Monowheel > --- UTILITY (2) ------ Improved Heat Sink Small Storage Unit > --- WEAPON (2) ------- Subdweller Laser Subdweller Beam Cannon > --- INVENTORY (8) ---- Subdweller Power Source Light Treads Light Treads Spiked Treads Compact Wheel Subdweller Monowheel Improved Heat Sink Peak State ------------ > --- POWER ------------ Light Angular Momentum Engine > --- PROPULSION ------- Subdweller Monowheel Subdweller Monowheel > --- UTILITY ---------- Improved Heat Sink Small Storage Unit > --- WEAPON ----------- Subdweller Beam Cannon Barrage Gun > --- INVENTORY -------- Subdweller Power Source Light Treads Light Treads Spiked Treads Compact Wheel Compact Wheel Improved Heat Sink Subdweller Laser [Rating: 19] Favorites ----------- Power Ion Engine Engine Ion Engine Propulsion Compact Wheel Wheel Compact Wheel Utility Small Storage Unit Device Improved Terrain Scanner Storage Small Storage Unit Weapon Assault Rifle Energy Gun Medium Laser Energy Cannon Subdweller Beam Cannon Ballistic Gun Assault Rifle Build | -11 -10 -10 ------- Run | Yrd Mat Sub Slots Evolved . | . . . Power . | . . . Propulsion . | . . . Utility . | . . . Weapon . | . . . Parts Attached 19 | 7 1 11 Power 4 | 1 . 3 Engine 4 | 1 . 3 Core . | . . . Reactor . | . . . Propulsion 5 | 2 . 3 Treads . | . . . Leg . | . . . Wheel 5 | 2 . 3 Hover . | . . . Flight . | . . . Utility 4 | 2 . 2 Device 3 | 1 . 2 Storage 1 | 1 . . Processor . | . . . Hackware . | . . . Protection . | . . . Artifact . | . . . Weapon 6 | 2 1 3 Energy Gun 2 | 1 . 1 Energy Cannon 1 | . . 1 Ballistic Gun 3 | 1 1 1 Ballistic Cannon . | . . . Launcher . | . . . Special Weapon . | . . . Impact Weapon . | . . . Slashing Weapon . | . . . Piercing Weapon . | . . . Special Melee Weapon . | . . . Unidentified Prototypes . | . . . Parts Lost 6 | . 1 5 Power 2 | . . 2 Propulsion . | . . . Utility 2 | . . 2 Weapon 2 | . 1 1 Highest Loss Streak 3 | . 1 3 To Critical Strikes . | . . . Average Slot Usage (%) 97 | . 99 93 Engine 13 | . 14 13 Wheel 28 | . 28 28 Device 12 | . 14 8 Storage 14 | . 14 14 Energy Gun 2 | . 2 1 Energy Cannon 1 | . . 4 Ballistic Gun 24 | . 25 21 Naked Turns . | . . . Heaviest Build 27 | 15 15 27 Greatest Support 40 | 32 32 40 Greatest Overweight (x) 1 | . . 1 Average Overweight (x) . | . . . Largest Inventory Capacity 8 | 8 8 8 Average Capacity 7 | 7 8 8 Most Carried 8 | 6 7 8 Average Carried 6 | 4 6 7 Final Capacity 8 | 8 8 8 Final Carried 7 | 6 6 7 Class Distribution -------------------- 91% | Mutant 8% | Scavenger-Mutant Dominant Class ---------------- Mutant | -10/Materials Mutant | -10/Subcaves Resources | -11 -10 -10 ----------- Run | Yrd Mat Sub Matter Collected 628 | 312 88 228 Remotely . | . . . Salvage Created 635 | 109 241 285 Parts 39 | 5 19 15 Haulers Intercepted . | . . . Recyclers Shooed 1 | . 1 . Parts Field Recycled . | . . . Retrieved Matter . | . . . Parts Self-Destructed 11 | . . 11 Prevented . | . . . Kills | -11 -10 -10 ------- Run | Yrd Mat Sub Combat Hostiles Destroyed 17 | . 10 7 Guns 13 | . 10 3 Cannons 4 | . . 4 Classes Destroyed 5 | 2 2 1 Tunneler 1 | 1 . . Recycler 1 | 1 . . Swarmer 6 | . 6 . Grunt 6 | . 4 2 Subdweller 5 | . . 5 Best Kill Streak 4 | 1 3 4 Combat Bots Only 4 | . 3 4 Max Kills in Single Turn 1 | 1 1 1 Gunslinging . | . . . Exploded . | . . . Melee . | . . . Uniques/NPCs Destroyed . | . . . Combat | -11 -10 -10 -------- Run | Yrd Mat Sub Hostile Shots Fired 93 | . 59 34 Missed 21 | . 12 9 Damage Taken 983 | . 438 545 Core 268 | . 129 139 Absorbed by Shields . | . . . Core Remaining (%) 100 | 100 . . Volleys Fired 70 | 14 33 23 Largest 2 | 1 2 2 Hottest 140 | 20 70 140 Shots Fired 124 | 14 65 45 Gun 110 | 14 65 31 Cannon 14 | . . 14 Launcher . | . . . Special . | . . . Kinetic 87 | 14 47 26 Thermal 37 | . 18 19 Explosive . | . . . Electromagnetic . | . . . Robot Hit Streak 12 | 4 12 10 Robot Miss Streak 2 | 1 2 2 Penetration Max . | . . . Secondary Targets . | . . . Shots Hit Robots 84 | 10 43 31 Core Hits 31 | 3 17 11 Critical Kills . | . . . Critical Parts Destroyed 1 | . 1 . Critical Strikes 3 | . 3 . Burn 2 | . 2 . Destroy 1 | . 1 . Melee Attacks . | . . . Impact . | . . . Slashing . | . . . Piercing . | . . . Sneak Attacks . | . . . Combat Hostiles . | . . . Follow-up Attacks . | . . . Damage Inflicted 1206 | 127 547 532 Guns 966 | 127 547 292 Cannons 240 | . . 240 Explosions . | . . . Melee . | . . . Ramming . | . . . Kinetic 714 | 127 383 204 Thermal 492 | . 164 328 Explosive . | . . . Electromagnetic . | . . . Impact . | . . . Slashing . | . . . Piercing . | . . . Highest Corruption . | . . . Average Corruption . | . . . Corruption Purged . | . . . Corruption Blocked . | . . . Overload Shots . | . . . Overflow Damage . | . . . Projectiles . | . . . Explosions . | . . . Melee . | . . . Knockbacks . | . . . Impact . | . . . Kinetic . | . . . Secondary . | . . . Self-Inflicted Damage . | . . . Shots . | . . . Rammed . | . . . Targets Rammed . | . . . Kicked . | . . . Crushed . | . . . Highest Temperature 310 | . 117 310 Average Temperature 56 | . 48 73 Received Heat Transfer 573 | . 102 471 Siege Activations . | . . . Robots Corrupted . | . . . Combat Hostiles . | . . . Parts Fried . | . . . Impact Corruptions . | . . . Robots Melted . | . . . Combat Hostiles . | . . . Parts Melted 5 | . . 5 Heat Transferred 1062 | . 629 433 Parts Sabotaged . | . . . Parts Stolen . | . . . Parts Stripped . | . . . Power Chain Reactions . | . . . Alert | -11 -10 -10 ------- Run | Yrd Mat Sub Peak Influence 299 | 10 299 . Initial 6 | . 6 . Average 130 | 3 149 . Maximum Alert Level 1 | . 1 . Low Security (%) 77 | 100 73 . Level 1 22 | . 26 . Level 2 . | . . . Level 3 . | . . . Level 4 . | . . . Level 5 . | . . . High Security . | . . . Max Security . | . . . Squads Dispatched 2 | . 2 . Investigation . | . . . Extermination . | . . . Reinforcement 2 | . 2 . Assault . | . . . Garrison . | . . . Intercept . | . . . Searches Triggered . | . . . Construction Impeded . | . . . Haulers Reinforced . | . . . Active Scanning Responses . | . . . Cargo Convoy Interrupts . | . . . Stealth | -11 -10 -10 --------- Run | Yrd Mat Sub Distress Signals . | . . . Communications Jammed . | . . . Distress Signals . | . . . Times Spotted 28 | . 16 12 Peak Tracking Total 5 | . 3 5 Tactical Retreats . | . . . Traps | -11 -10 -10 ------- Run | Yrd Mat Sub Traps Triggered . | . . . Indirectly . | . . . Trap Hack Attempts . | . . . Triggered . | . . . Disarmed . | . . . Reprogrammed . | . . . Reused . | . . . Traps Extracted . | . . . Installed . | . . . Triggered . | . . . Machines | -11 -10 -10 ---------- Run | Yrd Mat Sub Machines Disabled . | . . . Max in Single Turn . | . . . Machines Repaired . | . . . Machines Dismantled . | . . . Machines Sabotaged . | . . . Overloaded Fab Kills . | . . . Hacking | -11 -10 -10 --------- Run | Yrd Mat Sub Machines Accessed 4 | . 4 . Terminals 4 | . 4 . Fabricators . | . . . Repair Stations . | . . . Recycling Units . | . . . Scanalyzers . | . . . Garrison Access . | . . . Total Hacks 6 | . 6 . Successful 3 | . 3 . Failed 3 | . 3 . Catastrophic 2 | . 2 . Database Lockouts . | . . . Manual 1 | . 1 . Terminals 6 | . 6 . Fabricators . | . . . Repair Stations . | . . . Recycling Units . | . . . Scanalyzers . | . . . Garrison Access . | . . . Terminal Hacks 3 | . 3 . Level Access Points 1 | . 1 . Alert Level 1 | . 1 . Locate Traps 1 | . 1 . Fabricator Hacks . | . . . Repair Station Hacks . | . . . Recycling Unit Hacks . | . . . Scanalyzer . | . . . Garrison Access Hacks . | . . . Unauthorized Hacks . | . . . Terminals . | . . . Fabricators . | . . . Repair Stations . | . . . Recycling Units . | . . . Scanalyzers . | . . . Garrison Access . | . . . Data Cores Recovered . | . . . Used . | . . . Hacking Detections 4 | . 4 . Full Trace Events . | . . . Feedback Events . | . . . Feedback Blocked . | . . . Robot Schematics Acquired . | . . . Robots Built . | . . . Authchips . | . . . Time . | . . . Total Robot Build Rating . | . . . Part Schematics Acquired . | . . . Parts Built . | . . . Authchips . | . . . Time . | . . . Total Part Build Rating . | . . . Parts Repaired . | . . . Time . | . . . Parts Recycled . | . . . Recycled Matter . | . . . Retrieved Matter . | . . . Retrieved Components . | . . . Parts Scanalyzed . | . . . Part Schematics Acquired . | . . . Parts Damaged . | . . . Bothacking | -11 -10 -10 ------------ Run | Yrd Mat Sub Used RIF Installer . | . . . Robots Hacked . | . . . Non-combat . | . . . Combat . | . . . Robot Hacks Applied . | . . . Relay Couplers Released . | . . . Fabnet Peak Effective % . | . . . Robots Rewired . | . . . Allies Hacked . | . . . Hacks Repelled . | . . . Allies | -11 -10 -10 -------- Run | Yrd Mat Sub Total Allies . | . . . Largest Group . | . . . Highest-Rated Group . | . . . Highest-Rated Ally . | . . . Total Orders . | . . . Ally Attacks . | . . . Total Damage . | . . . Kills . | . . . Allies Corrupted . | . . . Allies Melted . | . . . Intel | -11 -10 -10 ------- Run | Yrd Mat Sub Robot Analysis Total . | . . . Derelict Logs Recovered 2 | . . 2 Drone Launches . | . . . Drone Recoveries . | . . . Exploration | -11 -10 -10 ------------- Run | Yrd Mat Sub Turns Passed 1400 | 121 827 452 Spaces Moved 549 | 74 144 331 Core 1 | 1 . . Treads . | . . . Legs . | . . . Wheels 548 | 73 144 331 Hover . | . . . Flight . | . . . Fastest Speed 50 | 50 100 100 Average Speed 103 | 99 100 105 Slowest Speed 120 | 100 100 120 Overloaded Moves . | . . . Propulsion Burnouts . | . . . Robots Hopped . | . . . Cave-ins Triggered . | . . . Exploration Rate (%) 20 | 6 26 29 Regions Visited 2 Branch Regions 1 Pre-discovered Areas . | . . . Known Exits Taken . | . . . Unknown Exits Taken 2 | 1 1 . Scrap Searched . | . . . Spaces Dug . | . . . Terrain Destroyed 2 | . . 2 Melee . | . . . Projectile 2 | . . 2 AOE . | . . . Terrain Rammed . | . . . Walls Destroyed . | . . . Machines Disabled . | . . . Actions | -11 -10 -10 --------- Run | Yrd Mat Sub Total 1260 | 107 762 391 Wait 589 | . 584 5 Move 547 | 73 143 331 Hop . | . . . Pick Up 27 | 13 1 13 Fast Attach . | . . . Attach 13 | 7 1 5 Detach . | . . . Swap 6 | . . 6 Drop 7 | . . 7 Fire 70 | 14 33 23 Melee . | . . . Ram . | . . . Kick . | . . . Crush . | . . . Escape Stasis . | . . . Rewire 1 | . . 1 Trap . | . . . Miscellaneous . | . . . Route ------- -11/Scrapyard -10/Materials (discovered 4 exits: Mat x3 / [*Sub]) -10/Subcaves History --------- Turn | Location | Event 31 | -11/Scrapyard | Discovered new exit (range 16) 122 | -11/Scrapyard | Entered Materials 185 | -10/Materials | Identified exit to Materials 301 | -10/Materials | Build established: Mutant 317 | -10/Materials | Core integrity fell below 50% 378 | -10/Materials | Discovered new exit (range 8) 949 | -10/Materials | Entered Subcaves 954 | -10/Subcaves | Learned Materials garrison access intel 981 | -10/Subcaves | Learned Materials security intel 1047 | -10/Subcaves | Shifting Twisted Machinery released Barrage Gun 1096 | -10/Subcaves | Ambushed by Subdwellers from Twisted Machinery 1130 | -10/Subcaves | Lost 3 parts (1p2u) 1222 | -10/Subcaves | Ambushed by swarm of Subdwellers 1245 | -10/Subcaves | Core integrity fell below 20% 1271 | -10/Subcaves | Lost 4 allies 1401 | -10/Subcaves | Destroyed by HW-2CY(R) with Subdweller Machine Gun Last Messages --------------- 01265_ Disposable Heat Sink melted. 01265_ GZ-W9V(R) destroyed. 01270_ Dropped Assault Rifle. 01271_ Acquired Sub. Power Source. 01277_ Acquired Imp. Heat Sink. 01282_ Acquired 49 matter. 01284_ Subatomizers dissect the Bore Cannon. 01286_ Dropped Sub. Power Source. 01286_ Acquired Lgt. Angular Momentum Engine. 01290_ Acquired 26 matter. 01297_ Subatomizers dissect the Bore Cannon. 01343_ Barrage Gun destroyed. 01345_ G-47 Trooper destroyed. 01351_ G-34 Mercenary destroyed. 01358_ Sub. Monowheel shoots sparks and powers down. 01359_ Imp. Heat Sink fries itself beyond repair. 01361_ Heat Sink fries itself beyond repair. 01362_ Acquired 13 matter. 01366_ Aluminum Leg fries itself beyond repair. 01400_ Sub. Beam Cannon shoots sparks and powers down. Map ----- +----------------------------------------------------+ | ????????????? ###???????????????????????????? | | ????????????? #???????????????????????????? | | ????????????? ???????????????????????????? | | #?###??????## ???????????????????????????? | | ## ##?????# #???????????????????????????? | | ###??## ## ???????????????????????????? | | #### #?# ##??????????????????????????? | | ## #?## ###????????????????????????? | | ## #??# ###??????????????????????? | | ###?# ##?????????????????????? | | ### #?????????????????????? | | && ##????????????????????? | | #" % % %&## #????????????????????? | | ### "# #%!#### #????????????????????? | | #?### #####% #?## #????????????????????? | | # #???# #??? #?# ###????????????????????? | | # ##???# #?## ### #?????????????????????? | | ####????## ####??# ### ##?????????????????????? | | ?????????###????? # ## ##????????????????????? | | ?????????????????#?# ## #????????????????????? | | ???????????????????? ### ##????????????????????? | | ???????????????????? #?# #?????????????????????? | | ????????????????????##?## #?????????????????????? | | ???????????????????????## #?????????????????????? | | ?????????? ### ##????????????????????? | | ???????????????# @ #????????????????????? | | ????????????????# ???????????????? | | ????????????????# R #??????????? | | ????????????????# #?????????? | | ????????????????# ### #?????????? | | ????????????????# ##??? ??????????? | | ???????????????# ### ##?????? ??????????? | | ??????????????# #??# #???????? ???????????? | | ??????????????## ???# #????????????????????? | | ??????????????# ????## ###????????????????????? | | ??????????????# ??????####???????????????????????? | | ?????????????????????????????????????????????????? | | ?????????????????????????????????????????????????? | | ?????????????????????????????????????????????????? | | ?????????????????????????????????????????????????? | | ?????????????????????????????????????????????????? | | #?#??????????????????????????????????????????????? | | ?????????????????????????????????????????????????? | | #????????????????????????????????????????????????? | | ?#???????????????????????????????????????????????? | | ??#?????????#????????????????????????????????????? | | ??????#??????????????????????????????????????????? | | ??????????? ?????????????????????????????????????? | | ###???? ?????????????????????????????????????????? | | #??????????????????????????????????????????????? | +----------------------------------------------------+ Best States ------------- Heat Dissipation 39 Energy Generation 18 Energy Capacity 250 Matter Stores 300 Matter Capacity 300 Sight Range 16 Terrain Scan Range 16 Terrain Scan Density 10 Evasion (%) 40 Item Schematics ----------------- None Robot Schematics ------------------ None Fabricated ------------ Nothing Alien Tech Used ----------------- None Achievements -------------- None Challenges ------------ None Game ------ Seed AuthchipDimensionalField Manual? 0 Play Time 00:14:13 Cumulative 9.3 hours Start 2024.04.18 @ 15:56:56 End 2024.04.18 @ 16:12:36 Sessions 1 Manual Loads 0 Difficulty Rogue Special Mode None Game No. 11 Rogue 11 Adventurer 0 Explorer 0 Win Type - Total 0 Types 0/0/0/0/0/0/0/0/0 Lore% 14 Gallery% 14 Achievement% 14 Wizard Run 0 Options --------- Layout 1 ASCII 0 Keyboard 0 Movement Numpad Keybinds 0 Fullscreen 1 Font 24/Smallcaps Map View 76x35 Zoom Use 0% Tactical HUD 1 Map Filters NONE Filters NONE Steam 1 RUN: 9db3ba12-3389-4efa-9f08-dabc07e7547e